{"text_format":"1","workbook":"xlsx","n_sheets":2,"sheets":["入力フォーム","自動車保管場所証明申請書（書式）※編集不可"],"not_rendered":{"charts":0,"images":0,"macros":1,"external_links":0,"defined_names":1,"comments":0,"pivot_tables":0},"unopened":[],"bounds":{"document_bytes":16777216,"sheet_cells":100000,"rows_first":2000,"rows_last":500,"rows_between":2000,"halvings":0,"cell_chars":16384,"cell_head_chars":4096},"cells_cut":0,"cells_raw":0,"read":"whole","date_system":"1900"}

{"sheet":"入力フォーム","index":0,"n_rows":20,"n_cols":29,"rows_kept":20,"cut":false,"hidden":false,"merged":[[17,28,17,37],[18,28,18,36],[9,28,9,47],[6,24,6,27],[7,8,7,27],[6,28,6,47],[9,24,9,27],[9,21,9,23],[9,8,9,20],[6,8,6,10],[6,11,6,14],[8,8,8,27],[7,28,7,47],[8,28,8,47],[10,28,10,47],[13,8,13,10],[11,28,11,47],[10,18,10,20],[10,21,10,23],[10,24,10,27],[11,11,12,27],[10,11,10,14],[10,15,10,17],[16,18,16,20],[14,1,14,7],[15,1,15,7],[8,1,8,7],[4,8,5,27],[10,8,10,10],[9,1,9,7],[10,1,10,7],[4,1,5,7],[16,9,16,17],[19,0,20,47],[11,8,12,10],[13,11,13,27],[14,8,14,27],[15,8,15,27],[13,28,13,47],[16,1,16,7],[16,28,16,47],[15,28,15,47],[14,28,14,47],[17,1,17,7],[18,1,18,7],[17,8,17,17],[18,8,18,17],[10,0,13,0],[16,21,16,27],[0,0,0,47],[6,15,6,17],[6,18,6,20],[6,21,6,23],[7,1,7,7],[6,1,6,7],[1,1,1,7],[2,0,3,0],[2,22,2,47],[2,1,3,7],[4,0,5,0],[1,8,1,21],[1,22,1,47],[4,28,5,47],[2,8,3,21]]}
["入力フォーム"]
[1,"車名",null,null,null,null,null,null,null,null,null,null,null,null,null,null,null,null,null,null,null,null,"←メーカー名を入力してください。（トヨタ・日産・ＢＭＷ等）"]
[2,"型式",null,null,null,null,null,null,null,null,null,null,null,null,null,null,null,null,null,null,null,null,"←アルファベットは大文字で入力してください。　Ａ→〇　ａ→×"]
[null,null,null,null,null,null,null,null,null,null,null,null,null,null,null,null,null,null,null,null,null,null,"　欄が足りない場合は、欄外へ手書きで追記をして下さい。"]
[3,"車台番号",null,null,null,null,null,null,null,null,null,null,null,null,null,null,null,null,null,null,null,null,null,null,null,null,null,null,"←アルファベットは大文字で入力してください。　Ａ→〇　ａ→×\n　欄が足りない場合は、欄外へ手書きで追記をして下さい。"]
[]
[4,"自動車の大きさ",null,null,null,null,null,null,"長さ",null,null,null,null,null,null,"幅",null,null,null,null,null,"高さ",null,null,null,null,null,null,"←自動車の大きさを入力してください。（単位はセンチメートルです）"]
[5,"自動車の使用の本拠の位置",null,null,null,null,null,null,null,null,null,null,null,null,null,null,null,null,null,null,null,null,null,null,null,null,null,null,"←アポートやマンションの方は部屋番号まで入れてください。"]
[6,"自動車の保管場所の位置"]
[null,null,null,null,null,null,null,null,null,null,null,null,null,null,null,null,null,null,null,null,null,"申請警察署"]
[8,"申請者",null,null,null,null,null,null,"〒",null,null,null,null,null,null,"電話番号",null,null,null,null,null,null,null,null,null,null,null,null,"←〒は〇〇〇－〇〇〇〇　－を入れてください。"]
[null,null,null,null,null,null,null,null,"住所",null,null,null,null,null,null,null,null,null,null,null,null,null,null,null,null,null,null,null,"←アパートやマンションの方は部屋番号まで入れてください。"]
[]
[null,null,null,null,null,null,null,null,"氏名",null,null,null,null,null,null,null,null,null,null,null,null,null,null,null,null,null,null,null,"←姓と名は１字開けてください。例　警察＿太郎　（法人の場合は代表名を入力）"]
[9,"前車の登録番号",null,null,null,null,null,null,null,null,null,null,null,null,null,null,null,null,null,null,null,null,null,null,null,null,null,null,"←旧登録車を保管場所登録から削除する場合入力してください。"]
[10,"現車の登録番号",null,null,null,null,null,null,null,null,null,null,null,null,null,null,null,null,null,null,null,null,null,null,null,null,null,null,"←今回の申請で旧登録番号が変わらない場合は入力してください。"]
[11,"連絡先（申請者以外）",null,null,null,null,null,null,"☎",null,null,null,null,null,null,null,null,null,"担当者",null,null,null,null,null,null,null,null,null,"←提出者（申請手続き者）と申請者が異なる場合入力してください。"]
[12,"駐車場の名称",null,null,null,null,null,null,null,null,null,null,null,null,null,null,null,null,null,null,null,null,null,null,null,null,null,null,"←保管場所駐車場の名称（○○駐車場）"]
[13,"駐車場の位置",null,null,null,null,null,null,null,null,null,null,null,null,null,null,null,null,null,null,null,null,null,null,null,null,null,null,"←駐車枠番号等を記載"]
["証明申請書２枚、所在図、自認書、保管場所使用承諾証明書の合計５枚が印刷されます。自認書と保管場所使用承諾証明書はいずれかを申請時に使用します。"]

{"sheet":"自動車保管場所証明申請書（書式）※編集不可","index":1,"n_rows":199,"n_cols":44,"rows_kept":199,"cut":false,"hidden":false,"merged":[[42,33,42,45],[58,19,58,21],[10,16,11,45],[22,4,23,4],[31,33,31,34],[32,38,32,45],[31,1,32,10],[31,35,32,36],[28,32,28,35],[28,29,28,31],[19,26,20,41],[18,39,18,41],[16,23,16,24],[17,14,17,16],[31,20,31,21],[31,22,31,31],[32,22,32,31],[32,33,32,34],[44,36,44,39],[45,37,45,39],[46,37,46,39],[53,37,53,38],[55,1,55,7],[55,8,55,12],[55,19,55,20],[32,20,32,21],[34,3,34,44],[42,1,42,10],[42,11,42,21],[46,34,46,35],[48,1,49,15],[46,41,46,44],[31,11,32,12],[53,33,53,35],[40,1,40,11],[36,4,36,41],[41,1,41,45],[48,16,49,45],[50,1,51,15],[50,16,51,45],[52,2,52,38],[45,41,45,44],[74,3,74,44],[64,2,64,38],[68,29,68,31],[54,27,54,31],[71,38,71,45],[72,20,72,21],[72,33,72,34],[72,38,72,45],[58,29,58,30],[56,23,56,24],[57,14,57,16],[3,11,7,21],[0,1,0,11],[15,1,15,7],[1,1,1,45],[12,2,12,38],[10,1,11,15],[15,19,15,20],[4,41,4,44],[4,36,4,39],[3,1,7,10],[8,1,9,15],[3,22,7,32],[4,34,4,35],[15,8,15,12],[2,1,2,10],[2,11,2,21],[2,22,2,32],[2,33,2,45],[6,41,6,44],[5,34,5,35],[15,25,17,41],[13,37,13,38],[13,29,13,31],[14,27,14,31],[42,46,62,47],[43,11,47,21],[43,22,47,32],[44,34,44,35],[44,41,44,44],[2,46,22,47],[22,17,23,31],[6,34,6,35],[5,41,5,44],[13,33,13,35],[18,35,18,37],[24,2,24,38],[20,22,20,23],[19,23,19,24],[8,16,9,45],[5,37,5,39],[6,37,6,39],[22,11,23,11],[31,38,31,45],[18,31,18,33],[18,29,18,30],[18,19,18,21],[31,13,32,17],[31,19,32,19],[35,3,35,24],[42,22,42,32],[43,1,47,10],[45,34,45,35],[114,35,115,38],[37,4,37,37],[38,4,38,37],[39,3,39,44],[58,39,58,41],[71,20,71,21],[71,33,71,34],[71,35,72,36],[59,23,59,24],[60,22,60,23],[62,4,63,4],[62,11,63,11],[62,17,63,31],[77,4,77,37],[53,29,53,31],[59,25,60,41],[55,25,57,41],[58,31,58,33],[58,35,58,37],[75,3,75,24],[197,4,198,5],[198,6,199,37],[190,26,191,28],[194,26,195,28],[180,1,183,10],[173,1,179,10],[186,37,187,38],[186,33,187,34],[192,30,193,32],[184,3,185,34],[177,15,179,45],[176,43,176,45],[186,41,187,41],[188,27,189,27],[188,26,189,26],[188,28,189,33],[188,34,189,34],[182,11,183,45],[180,11,181,45],[177,11,179,14],[176,39,176,41],[176,35,176,37],[176,32,176,34],[174,15,175,45],[174,11,175,14],[173,13,173,19],[169,1,172,10],[149,43,150,44],[68,32,68,35],[71,1,72,10],[71,11,72,12],[71,13,72,17],[71,19,72,19],[116,1,116,2],[149,38,150,42],[143,21,144,21],[143,22,144,22],[136,8,137,11],[145,21,146,23],[145,24,146,42],[149,37,150,37],[120,4,120,43],[71,22,71,31],[72,22,72,31],[121,4,122,43],[159,2,160,4],[136,4,137,7],[149,34,150,36],[78,4,78,37],[79,3,79,44],[83,1,84,22],[83,23,84,43],[76,4,76,41],[152,21,153,23],[152,24,153,39],[161,6,162,42],[82,14,82,35],[114,39,115,43],[115,7,115,34],[161,5,162,5],[159,5,160,5],[149,24,150,26],[149,29,150,32],[149,33,150,33],[129,3,131,37],[169,39,170,45],[171,32,172,38],[116,4,117,43],[118,4,119,43],[167,39,168,45],[169,32,170,38],[165,13,166,28],[159,6,160,42],[171,39,172,45],[169,11,172,31],[125,13,125,32],[143,28,144,28],[143,23,144,27],[136,12,137,13],[149,28,150,28],[140,37,141,37],[140,29,141,29],[140,33,141,33]]}
[null,"別記様式第1号（第1条関係）"]
[null,"自　動　車　保　管　場　所　証　明　申　請　書"]
[null,"車　　　　　名",null,null,null,null,null,null,null,null,null,"型　　　　　式",null,null,null,null,null,null,null,null,null,null,"車　台　番　号",null,null,null,null,null,null,null,null,null,null,"自　動　車　の　大　き　さ"]
[null,{"$f":"入力フォーム!I2","v":0},null,null,null,null,null,null,null,null,null,{"$f":"入力フォーム!I3","v":0},null,null,null,null,null,null,null,null,null,null,{"$f":"入力フォーム!I5","v":0}]
[null,null,null,null,null,null,null,null,null,null,null,null,null,null,null,null,null,null,null,null,null,null,null,null,null,null,null,null,null,null,null,null,null,null,"長さ",null,{"$f":"入力フォーム!L7","v":0},null,null,null,null,"センチメートル"]
[null,null,null,null,null,null,null,null,null,null,null,null,null,null,null,null,null,null,null,null,null,null,null,null,null,null,null,null,null,null,null,null,null,null,"幅",null,null,{"$f":"入力フォーム!S7","v":0},null,null,null,"センチメートル"]
[null,null,null,null,null,null,null,null,null,null,null,null,null,null,null,null,null,null,null,null,null,null,null,null,null,null,null,null,null,null,null,null,null,null,"高さ",null,null,{"$f":"入力フォーム!Y7","v":0},null,null,null,"センチメートル"]
[]
[null,"自動車の使用の本拠の位置　",null,null,null,null,null,null,null,null,null,null,null,null,null,null,{"$f":"入力フォーム!I8","v":0}]
[]
[null,"自動車の保管場所の位置",null,null,null,null,null,null,null,null,null,null,null,null,null,null,{"$f":"入力フォーム!I9","v":0}]
[]
[null,null,"自動車の保管場所の位置欄記載の場所は、申請に係る自動車の保管場所として確保されていることを証明願います。"]
[null,null,null,null,null,null,null,null,null,null,null,null,null,null,null,null,null,null,null,null,null,null,null,null,null,null,null,null,null,null,null,null,"年",null,null,null,"月",null,null,"日"]
[null,null,null,null,null,null,null,null,null,null,null,null,null,null,null,null,null,null,null,null,null,null,null,null,null,"〒","（",{"$f":"入力フォーム!L11","v":0},null,null,null,null,"）"]
[null,{"$f":"入力フォーム!Y10","v":0},null,null,null,null,null,null,"警察署長　殿",null,null,null,null,null,null,null,null,null,null,null,null,null,null,null,null,{"$f":"入力フォーム!L12","v":0}]
[null,null,null,null,null,null,null,null,null,null,null,null,null,null,null,null,null,null,null,null,null,null,null,"住　所"]
[]
[null,null,null,null,null,null,null,null,null,null,null,null,null,null,null,null,null,null,null,"申請者",null,null,null,null,null,null,null,null,null,"電話",null,{"$f":"入力フォーム!S11","v":0},null,null,null,{"$f":"入力フォーム!V11","v":0},null,null,null,{"$f":"入力フォーム!Y11","v":0}]
[null,null,null,null,null,null,null,null,null,null,null,null,null,null,null,null,null,null,null,null,null,null,null,"氏　名",null,null,{"$f":"入力フォーム!L14","v":0}]
[]
[]
[null,null,null,null,"第",null,null,null,null,null,null,"号",null,null,null,null,null,"自動車保管場所証明書"]
[]
[null,null,"自動車の保管場所の位置欄記載の場所は、上記申請に係る自動車の保管場所として確保されていることを証明する。"]
[]
[]
[null,null,null,null,null,null,null,null,null,null,null,null,null,null,null,null,null,null,null,null,"年",null,null,"月",null,null,"日"]
[null,null,null,null,null,null,null,null,null,null,null,null,null,null,null,null,null,null,null,null,null,null,null,null,null,null,null,null,null,{"$f":"入力フォーム!Y10","v":0},null,null,"警察署長",null,null,null,null,null,null,null,null,"印"]
[]
[]
[null,"※　自動車の登録手続に必要となる自動車保管場所証明書\n　は、登録申請の日からさかのぼっておおむね１か月以内\n　に発行されたものとなりますので、注意してください。",null,null,null,null,null,null,null,null,null,"使用\n権限",null,"自己・他人・共有",null,null,null,null,null,"連\n絡\n先","氏名",null,{"$f":"入力フォーム!V17","v":0},null,null,null,null,null,null,null,null,null,null,"新規",null,"登録\n番号等",null,"前車",{"$f":"入力フォーム!I15","v":0}]
[null,null,null,null,null,null,null,null,null,null,null,null,null,null,null,null,null,null,null,null,"電話",null,{"$f":"入力フォーム!J17","v":0},null,null,null,null,null,null,null,null,null,null,"代替",null,null,null,"現車",{"$f":"入力フォーム!I16","v":0}]
[]
[null,"備考",1,"　次に掲げる場合は、所在図の添付を省略することができる。ただし、警察署長は、保管場所の付近の目標となる地物及びその位置を知るため特に　 　　　　　　　　　　　　　　　　　　　　　　　　　　"]
[null,null,null,"必要があると認めるときは、所在図の提出を求めることができる。"]
[null,null,null,"(1)","　自動車の使用の本拠の位置が、旧自動車(申請者が保有者である自動車であって申請に係るもの以外のものをいう。以下同じ。)に係る使用の"]
[null,null,null,"　","本拠の位置と同一であり、かつ、申請に係る場所が旧自動車の保管場所とされているとき。"]
[null,null,null,"(2)","　自動車の使用の本拠の位置が、保管場所の位置と同一であるとき（(1)に該当する場合を除く。）。"]
[null,null,2,"　用紙の大きさは、日本産業規格Ａ列４番とする。"]
[null,"別記様式第1号（第1条関係）"]
[null,"自　動　車　保　管　場　所　証　明　申　請　書"]
[null,"車　　　　　名",null,null,null,null,null,null,null,null,null,"型　　　　　式",null,null,null,null,null,null,null,null,null,null,"車　台　番　号",null,null,null,null,null,null,null,null,null,null,"自　動　車　の　大　き　さ"]
[null,{"$f":"入力フォーム!$I$2","v":0},null,null,null,null,null,null,null,null,null,{"$f":"入力フォーム!I3","v":0},null,null,null,null,null,null,null,null,null,null,{"$f":"入力フォーム!I5","v":0}]
[null,null,null,null,null,null,null,null,null,null,null,null,null,null,null,null,null,null,null,null,null,null,null,null,null,null,null,null,null,null,null,null,null,null,"長さ",null,{"$f":"入力フォーム!L7","v":0},null,null,null,null,"センチメートル"]
[null,null,null,null,null,null,null,null,null,null,null,null,null,null,null,null,null,null,null,null,null,null,null,null,null,null,null,null,null,null,null,null,null,null,"幅",null,null,{"$f":"入力フォーム!S7","v":0},null,null,null,"センチメートル"]
[null,null,null,null,null,null,null,null,null,null,null,null,null,null,null,null,null,null,null,null,null,null,null,null,null,null,null,null,null,null,null,null,null,null,"高さ",null,null,{"$f":"入力フォーム!Y7","v":0},null,null,null,"センチメートル"]
[]
[null,"自動車の使用の本拠の位置　",null,null,null,null,null,null,null,null,null,null,null,null,null,null,{"$f":"入力フォーム!$I$8","v":0}]
[]
[null,"自動車の保管場所の位置",null,null,null,null,null,null,null,null,null,null,null,null,null,null,{"$f":"入力フォーム!$I$9","v":0}]
[]
[null,null,"自動車の保管場所の位置欄記載の場所は、申請に係る自動車の保管場所として確保されていることを証明願います。"]
[null,null,null,null,null,null,null,null,null,null,null,null,null,null,null,null,null,null,null,null,null,null,null,null,null,null,null,null,null,null,null,null,"年",null,null,null,"月",null,null,"日"]
[null,null,null,null,null,null,null,null,null,null,null,null,null,null,null,null,null,null,null,null,null,null,null,null,null,"〒","（",{"$f":"入力フォーム!L11","v":0},null,null,null,null,"）"]
[null,{"$f":"入力フォーム!Y10","v":0},null,null,null,null,null,null,"警察署長　殿",null,null,null,null,null,null,null,null,null,null,null,null,null,null,null,null,{"$f":"入力フォーム!L12","v":0}]
[null,null,null,null,null,null,null,null,null,null,null,null,null,null,null,null,null,null,null,null,null,null,null,"住　所"]
[]
[null,null,null,null,null,null,null,null,null,null,null,null,null,null,null,null,null,null,null,"申請者",null,null,null,null,null,null,null,null,null,"電話",null,{"$f":"入力フォーム!S11","v":0},null,null,null,{"$f":"入力フォーム!V11","v":0},null,null,null,{"$f":"入力フォーム!Y11","v":0}]
[null,null,null,null,null,null,null,null,null,null,null,null,null,null,null,null,null,null,null,null,null,null,null,"氏　名",null,{"$f":"入力フォーム!L14","v":0}]
[]
[]
[null,null,null,null,"第",null,null,null,null,null,null,"号",null,null,null,null,null,"自動車保管場所証明書"]
[]
[null,null,"自動車の保管場所の位置欄記載の場所は、上記申請に係る自動車の保管場所として確保されていることを証明する。"]
[]
[]
[null,null,null,null,null,null,null,null,null,null,null,null,null,null,null,null,null,null,null,null,"年",null,null,"月",null,null,"日"]
[null,null,null,null,null,null,null,null,null,null,null,null,null,null,null,null,null,null,null,null,null,null,null,null,null,null,null,null,null,{"$f":"入力フォーム!Y10","v":0},null,null,"警察署長",null,null,null,null,null,null,null,null,"印"]
[]
[]
[null,"※　自動車の登録手続に必要となる自動車保管場所証明書\n　は、登録申請の日からさかのぼっておおむね１か月以内\n　に発行されたものとなりますので、注意してください。",null,null,null,null,null,null,null,null,null,"使用\n権限",null,"自己・他人・共有",null,null,null,null,null,"連\n絡\n先","氏名",null,{"$f":"入力フォーム!V17","v":0},null,null,null,null,null,null,null,null,null,null,"新規",null,"登録\n番号等",null,"前車",{"$f":"入力フォーム!I15","v":0}]
[null,null,null,null,null,null,null,null,null,null,null,null,null,null,null,null,null,null,null,null,"電話",null,{"$f":"入力フォーム!J17","v":0},null,null,null,null,null,null,null,null,null,null,"代替",null,null,null,"現車",{"$f":"入力フォーム!I16","v":0}]
[]
[null,"備考",1,"　次に掲げる場合は、所在図の添付を省略することができる。ただし、警察署長は、保管場所の付近の目標となる地物及びその位置を知るため特に　 　　　　　　　　　　　　　　　　　　　　　　　　　　"]
[null,null,null,"必要があると認めるときは、所在図の提出を求めることができる。"]
[null,null,null,"(1)","　自動車の使用の本拠の位置が、旧自動車(申請者が保有者である自動車であって申請に係るもの以外のものをいう。以下同じ。)に係る使用の"]
[null,null,null,"　","本拠の位置と同一であり、かつ、申請に係る場所が旧自動車の保管場所とされているとき。"]
[null,null,null,"(2)","　自動車の使用の本拠の位置が、保管場所の位置と同一であるとき（(1)に該当する場合を除く。）。"]
[null,null,2,"　用紙の大きさは、日本産業規格Ａ列４番とする。"]
[]
[]
[null,null,null,null,null,null,null,null,null,null,null,null,null,null,"保管場所の所在図・配置図　"]
[null,"所　在　図　記　載　欄",null,null,null,null,null,null,null,null,null,null,null,null,null,null,null,null,null,null,null,null,null,"配　置　図　記　載　欄"]
[]
[]
[]
[]
[]
[]
[]
[]
[]
[]
[]
[]
[]
[]
[]
[]
[]
[]
[]
[]
[]
[]
[]
[]
[]
[]
[]
[]
[]
[]
[null,null,null,null,null,null,null,null,null,null,null,null,null,null,null,null,null,null,null,null,null,null,null,null,null,null,null,null,null,null,null,null,null,null,null,"シャッターの有無",null,null,null,"有　・　無"]
[]
[null,"備考",null,"１","　使用の本拠の位置が旧自動車に係る使用の本拠の位置と同一であり、かつ、保管場所が旧自動車の保管場所である場合又は使用の本拠\nの位置が保管場所と同一である場合には、所在図を省略することができます。"]
[]
[null,null,null,"２","　所在図には、保管場所付近の道路及び目標となる地物を表示するほか、自動車の使用の本拠の位置及び保管場所の位置を明記し、これ\nらの位置を直線で結んだ上で、その間の距離を明記してください。"]
[]
[null,null,null,"３","　所在図には、本様式に記載せず、保管場所付近の道路及び目標となる地物が確認できる既存の地図の写しを用いても構いません。"]
[null,null,null,"４","　配置図には、保管場所並びに保管場所の周囲の建物、空き地及び道路を表示するほか、保管場所にあってはその平面の寸法、保管場所に\n接する道路にあってはその幅員を明記してください。"]
[]
[]
[]
[null,null,null,null,null,null,null,null,null,null,null,null,null,"保管場所使用権原疎明書面（自認書）"]
[]
[]
[]
[null,null,null,"証明申請・届出　に係る保管場所である　土地・建物　は、私(当法人)の所有であることに間違いありません。"]
[]
[]
[]
[]
[]
[]
[null,null,null,null,{"$f":"入力フォーム!Y10","v":0},null,null,null,"警察署長",null,null,null,"殿"]
[]
[]
[]
[null,null,null,null,null,null,null,null,null,null,null,null,null,null,null,null,null,null,null,null,null,null,null,null,null,null,null,null,null,"年",null,null,null,"月",null,null,null,"日"]
[]
[]
[null,null,null,null,null,null,null,null,null,null,null,null,null,null,null,null,null,null,null,null,null,"〒","（",{"$f":"入力フォーム!L11","v":0},null,null,null,null,"）"]
[]
[null,null,null,null,null,null,null,null,null,null,null,null,null,null,null,null,null,null,null,null,null,"住　所",null,null,{"$f":"入力フォーム!L12","v":0}]
[]
[]
[]
[null,null,null,null,null,null,null,null,null,null,null,null,null,null,null,null,null,null,null,null,null,null,null,null,"電　話",null,null,null,null,{"$f":"入力フォーム!S11","v":0},null,null,null,"-",{"$f":"入力フォーム!V11","v":0},null,null,"-",{"$f":"入力フォーム!Y11","v":0}]
[]
[]
[null,null,null,null,null,null,null,null,null,null,null,null,null,null,null,null,null,null,null,null,null,"氏　名",null,null,{"$f":"入力フォーム!L14","v":0}]
[]
[]
[]
[]
[]
[]
[null,null,"備　考",null,null,"１","保管場所証明申請の場合は証明申請に、保管場所届出の場合は届出に〇をつけてください。"]
[]
[null,null,null,null,null,"２","土地・建物についてはどちらか当てはまる方（両方に当てはまる場合は両方）に〇を付けてください。"]
[]
[]
[]
[null,null,null,null,null,null,null,null,null,null,null,null,null,"保 管 場 所 使 用 承 諾 証 明 書"]
[]
[null,null,null,null,null,null,null,null,null,null,null,null,null,null,null,null,null,null,null,null,null,null,null,null,null,null,null,null,null,null,null,null,null,null,null,null,null,null,null,"警察署長提出用"]
[]
[null,"保 管 場 所 の 位 置",null,null,null,null,null,null,null,null,null,{"$f":"入力フォーム!I9","v":0},null,null,null,null,null,null,null,null,null,null,null,null,null,null,null,null,null,null,null,null,"駐 車 場 の 名 称",null,null,null,null,null,null,"駐 車 位 置 番 号"]
[]
[null,null,null,null,null,null,null,null,null,null,null,null,null,null,null,null,null,null,null,null,null,null,null,null,null,null,null,null,null,null,null,null,{"$f":"入力フォーム!I18","v":0},null,null,null,null,null,null,{"$f":"入力フォーム!I19","v":0}]
[]
[null,"使用者",null,null,null,null,null,null,null,null,null,"〒","（",{"$f":"入力フォーム!L11","v":0},null,null,null,null,null,null,"）"]
[null,null,null,null,null,null,null,null,null,null,null,"住　所",null,null,null,{"$f":"入力フォーム!L12","v":0}]
[]
[null,null,null,null,null,null,null,null,null,null,null,null,null,null,null,null,null,null,null,null,null,null,null,null,null,null,null,null,null,null,null,null,"電 話",null,null,{"$f":"入力フォーム!S11","v":0},null,null,null,{"$f":"入力フォーム!V11","v":0},null,null,null,{"$f":"入力フォーム!Y11","v":0}]
[null,null,null,null,null,null,null,null,null,null,null,"氏  名",null,null,null,{"$f":"入力フォーム!L14","v":0}]
[]
[]
[null,"使　　用　　期　　間",null,null,null,null,null,null,null,null,null,"年　　　　　月　　　　　日  か   ら　　　　　　　"]
[]
[null,null,null,null,null,null,null,null,null,null,null,"年　　　　　月　　　　　日  ま   で　　　　　　　"]
[]
[null,null,null,"上記のとおり自動車の保管場所としての使用を承諾したことを証明する。"]
[]
[null,null,null,null,null,null,null,null,null,null,null,null,null,null,null,null,null,null,null,null,null,null,null,null,null,null,null,null,null,null,null,null,null,"年",null,null,null,"月",null,null,null,"日"]
[]
[null,null,null,null,null,null,null,null,null,null,null,null,null,null,null,null,null,null,null,null,null,null,null,null,null,null,"〒","（",null,null,null,null,null,null,"）"]
[]
[null,null,null,null,null,null,null,null,null,null,null,null,null,null,null,null,null,null,null,null,null,null,null,null,null,null,"住 所"]
[]
[null,null,null,null,null,null,null,null,null,null,null,null,null,null,null,null,null,null,null,null,null,null,null,null,null,null,null,null,null,null,"電 話"]
[]
[null,null,null,null,null,null,null,null,null,null,null,null,null,null,null,null,null,null,null,null,null,null,null,null,null,null,"氏 名"]
[]
[]
[null,null,null,null,"備考"]
[null,null,null,null,null,null,"共有の場合は、必要な共有者全員の住所・氏名を記入してください。"]